bitfinex-derivatives/quotes_BTCF0:USTF0_20210703
["timestamp","ask_amount","ask_price","bid_price","bid_amount"]
[1625351114320,0.059,34536.0,34535.0,0.72172632]
[1625351114623,0.118,34536.0,34535.0,0.72172632]
[1625351114923,0.059,34536.0,34535.0,0.72172632]
[1625351115172,0.24679,34538.0,34535.0,0.72172632]
[1625351115428,0.24679,34538.0,34537.0,0.24057544]
[1625351115976,0.67075558,34545.0,34537.0,0.24057544]
[1625351116127,0.059,34538.0,34537.0,0.24057544]
[1625351116277,0.67075558,34545.0,34537.0,0.24057544]
[1625351116378,0.059,34538.0,34537.0,0.24057544]
[1625351116477,0.3678,34538.0,34537.0,0.24057544]
[1625351118087,0.118,34538.0,34537.0,0.24057544]
[1625351118335,0.059,34538.0,34537.0,0.24057544]
[1625351118786,0.118,34538.0,34537.0,0.24057544]
[1625351122043,0.118,34538.0,34537.0,0.53421544]
[1625351125149,0.37238,34538.0,34537.0,0.24057544]
[1625351125449,0.61295544,34538.0,34537.0,0.24057544]
[1625351129008,0.55395544,34538.0,34537.0,0.18157544]
[1625351129460,0.55395544,34538.0,34525.0,0.24057544]
[1625351129560,0.24057544,34531.0,34530.0,0.24057544]
[1625351129659,0.57381544,34531.0,34530.0,0.24057544]
[1625351129760,0.63281544,34531.0,34530.0,0.24057544]
[1625351131567,0.87339088,34531.0,34530.0,0.24057544]
[1625351133517,0.87339088,34531.0,34525.0,0.24057544]
[1625351135520,0.24057544,34526.0,34525.0,0.24057544]
[1625351135621,0.29957544,34526.0,34525.0,0.24057544]
[1625351135721,0.35857544,34526.0,34525.0,0.24057544]
[1625351137424,0.29957544,34526.0,34525.0,0.24057544]
[1625351138129,0.059,34526.0,34525.0,0.29957544]
[1625351138525,0.059,34526.0,34525.0,0.24057544]
[1625351139377,0.059,34526.0,34525.0,0.29957544]
[1625351139476,0.118,34526.0,34525.0,0.24057544]
[1625351139576,0.118,34526.0,34525.0,0.48115088]
[1625351139827,0.059,34526.0,34525.0,0.48115088]
[1625351141030,0.059,34526.0,34525.0,0.70857088]
[1625351144941,0.059,34526.0,34525.0,0.48115088]
[1625351146392,0.118,34526.0,34525.0,0.48115088]
[1625351146493,0.118,34526.0,34525.0,0.24057544]
[1625351147693,0.35857544,34526.0,34525.0,0.24057544]
[1625351148293,0.35857544,34526.0,34520.0,0.24057544]
[1625351148658,0.35857544,34526.0,34514.0,0.45587986]
[1625351148993,0.01459588,34525.0,34514.0,0.45587986]
[1625351149196,0.13259588,34525.0,34514.0,0.45587986]
[1625351149548,0.01459657,34524.0,34514.0,0.45587986]
[1625351149646,0.72172632,34515.0,34514.0,0.45587986]
[1625351149748,1.06010632,34515.0,34514.0,0.45587986]
[1625351149896,1.11910632,34515.0,34514.0,0.45587986]
[1625351152151,1.06010632,34515.0,34514.0,0.45587986]
[1625351152255,0.78072632,34515.0,34514.0,0.45587986]
[1625351152954,0.83972632,34515.0,34514.0,0.45587986]
[1625351156961,0.78072632,34515.0,34514.0,0.45587986]
[1625351157119,0.78072632,34515.0,34514.0,0.76083986]
[1625351157213,0.54015088,34515.0,34514.0,0.76083986]
[1625351157313,0.059,34515.0,34514.0,0.81983986]
[1625351157666,0.29957544,34515.0,34514.0,1.30099074]
[1625351157963,0.24057544,34515.0,34514.0,1.30099074]
[1625351158263,0.29957544,34515.0,34514.0,1.24199074]
[1625351158513,0.35857544,34515.0,34514.0,1.24199074]
[1625351159015,0.56850544,34515.0,34514.0,0.93703074]
[1625351159316,0.50950544,34515.0,34514.0,0.93703074]
[1625351159417,0.45050544,34515.0,34514.0,0.93703074]
[1625351159516,0.50950544,34515.0,34514.0,0.93703074]
[1625351159616,0.45050544,34515.0,34514.0,0.93703074]
[1625351159718,0.50950544,34515.0,34514.0,0.93703074]
[1625351159819,0.56850544,34515.0,34514.0,0.93703074]
[1625351161573,0.50950544,34515.0,34514.0,0.93703074]
[1625351162227,0.29957544,34515.0,34514.0,0.93703074]
[1625351162677,0.29957544,34515.0,34514.0,0.99603074]
[1625351162678,0.24057544,34515.0,34514.0,0.99603074]
[1625351162775,0.24057544,34518.0,34514.0,0.99603074]
[1625351162876,0.29957544,34518.0,34514.0,0.99603074]
[1625351163227,0.24057544,34518.0,34514.0,0.99603074]
[1625351163325,0.08286923,34525.0,34514.0,0.99603074]
[1625351163428,0.059,34525.0,34514.0,1.05303074]
[1625351163729,0.24057544,34526.0,34524.0,0.24057544]
[1625351163829,0.29957544,34526.0,34524.0,0.53750544]
[1625351165487,0.29957544,34526.0,34524.0,0.59650544]
[1625351167088,0.059,34526.0,34524.0,0.59650544]
[1625351167691,0.059,34526.0,34525.0,0.24057544]
[1625351167889,0.059,34526.0,34525.0,0.29957544]
[1625351170751,0.08387125,34526.0,34525.0,0.29957544]
[1625351171401,0.66953287,34528.0,34525.0,0.29957544]
[1625351171402,0.08392452,34528.0,34525.0,0.29957544]
[1625351171602,1.34027964,34534.0,34525.0,0.29957544]
[1625351171703,1.67530767,34543.0,34525.0,0.29957544]
[1625351171854,1.67575271,34544.0,34540.0,1.20626176]
[1625351171960,1.67575271,34544.0,34540.0,1.70626176]
[1625351172052,1.67575271,34544.0,34540.0,1.76526176]
[1625351172203,1.60935271,34544.0,34540.0,1.76526176]
[1625351172404,1.39335271,34544.0,34540.0,1.76526176]
[1625351172506,1.19865271,34544.0,34540.0,1.26526176]
[1625351172956,0.2015997,34564.0,34540.0,1.26526176]
[1625351173059,0.2015997,34564.0,34541.0,0.057]
[1625351173155,0.3195997,34564.0,34541.0,0.116]
[1625351173304,0.3195997,34564.0,34541.0,0.175]
[1625351173405,0.118,34564.0,34541.0,0.175]
[1625351173804,0.35857544,34564.0,34563.0,0.48115088]
[1625351173904,0.35857544,34564.0,34556.0,0.24057544]
[1625351174156,0.37317516,34564.0,34556.0,0.24057544]
[1625351174256,0.37317516,34564.0,34541.0,0.057]
[1625351174403,0.059,34556.0,34541.0,0.057]
[1625351174505,0.31833,34556.0,34518.0,2.03875031]
[1625351174604,0.37733,34556.0,34528.0,0.057]
[1625351174704,0.37733,34556.0,34528.0,0.175]
[1625351174904,0.37733,34556.0,34528.0,0.116]
[1625351175705,0.0145906,34555.0,34528.0,0.116]
[1625351175804,0.54896544,34548.0,34547.0,0.24057544]
[1625351175907,0.60796544,34548.0,34547.0,0.24057544]
[1625351177211,0.54896544,34548.0,34547.0,0.24057544]
[1625351177311,0.60796544,34548.0,34547.0,0.24057544]
[1625351179866,0.60796544,34548.0,34540.0,0.24057544]
[1625351181821,0.24057544,34541.0,34540.0,0.24057544]
[1625351181921,0.66837544,34541.0,34540.0,0.24057544]
[1625351182174,0.66837544,34541.0,34537.0,0.24057544]
[1625351183524,0.60937544,34541.0,34537.0,0.24057544]
[1625351183826,0.24057544,34540.0,34537.0,0.24057544]
[1625351183927,0.29957544,34540.0,34537.0,0.24057544]
[1625351184825,0.56991544,34540.0,34537.0,0.24057544]
[1625351185828,0.81049088,34540.0,34537.0,0.24057544]
[1625351186881,1.34006167,34538.0,34537.0,0.24057544]
[1625351186980,1.39906167,34538.0,34537.0,0.24057544]
[1625351187230,1.45806167,34538.0,34537.0,0.24057544]
[1625351188685,2.96869604,34538.0,34537.0,0.24057544]
[1625351189034,2.96869604,34538.0,34532.0,0.24057544]
[1625351189535,1.34270065,34533.0,34532.0,0.24057544]
[1625351189635,1.71738065,34533.0,34532.0,0.24057544]
[1625351189786,1.71738065,34533.0,34515.0,0.9057]
[1625351189787,3.16756809,34533.0,34515.0,0.9057]
[1625351189935,0.24057544,34524.0,34523.0,0.24057544]
[1625351190035,0.56737544,34524.0,34523.0,0.24057544]
[1625351190136,0.50837544,34524.0,34523.0,0.24057544]
[1625351190537,0.56737544,34524.0,34523.0,0.24057544]
[1625351191791,1.73963004,34524.0,34523.0,0.24057544]
[1625351192944,0.56737544,34524.0,34523.0,0.24057544]
[1625351193245,1.73839471,34524.0,34523.0,0.24057544]
[1625351193696,0.56737544,34524.0,34523.0,0.24057544]
[1625351194146,1.73810714,34524.0,34523.0,0.24057544]
[1625351201157,1.67910714,34524.0,34523.0,0.24057544]
[1625351202012,1.01037913,34524.0,34523.0,0.24057544]
[1625351202161,1.06937913,34524.0,34523.0,0.24057544]
[1625351202612,3.24237553,34524.0,34523.0,0.24057544]
[1625351203465,3.24237553,34524.0,34519.0,0.24057544]
[1625351203917,2.91147758,34520.0,34519.0,0.24057544]
[1625351204115,3.02947758,34520.0,34519.0,0.24057544]
[1625351204467,2.97047758,34520.0,34519.0,0.24057544]
[1625351205118,0.80044261,34520.0,34519.0,0.24057544]
[1625351205620,1.12086261,34520.0,34519.0,0.24057544]
[1625351205922,1.12086261,34520.0,34516.0,0.24057544]
[1625351206025,3.29080472,34520.0,34516.0,0.24057544]
[1625351206724,0.50068389,34517.0,34516.0,0.24057544]
[1625351206924,0.55968389,34517.0,34516.0,0.24057544]
[1625351207676,0.61868389,34517.0,34516.0,0.24057544]
[1625351207926,0.85925933,34517.0,34516.0,0.24057544]
[1625351208026,0.80025933,34517.0,34516.0,0.24057544]
[1625351208178,1.80098863,34517.0,34516.0,0.24057544]
[1625351212986,1.85998863,34517.0,34516.0,0.24057544]
[1625351213085,1.80098863,34517.0,34516.0,0.24057544]
[1625351213988,1.85998863,34517.0,34516.0,0.24057544]
[1625351214291,1.80098863,34517.0,34516.0,0.24057544]
[1625351214390,1.85998863,34517.0,34516.0,0.24057544]
[1625351215843,1.94768863,34517.0,34516.0,0.24057544]
[1625351215942,1.85998863,34517.0,34516.0,0.24057544]
[1625351218547,1.87457842,34517.0,34516.0,0.24496483]
[1625351219898,1.87457842,34517.0,34516.0,0.24057544]
[1625351220301,3.13197277,34517.0,34516.0,0.24057544]
[1625351220400,3.13197277,34517.0,34514.0,0.45587986]
[1625351220850,0.0145908,34516.0,34514.0,0.45587986]
[1625351220950,0.0735908,34516.0,34514.0,0.45587986]
[1625351221050,0.1325908,34516.0,34514.0,0.41247986]
[1625351221152,1.50315264,34515.0,34514.0,0.41247986]
[1625351221353,1.62115264,34515.0,34514.0,0.41247986]
[1625351221451,1.63574377,34515.0,34514.0,0.41247986]
[1625351221655,2.80428025,34515.0,34514.0,0.41247986]
[1625351222054,3.04485569,34515.0,34514.0,0.41247986]
[1625351224061,3.28543113,34515.0,34514.0,0.41247986]
[1625351227369,3.28543113,34515.0,34514.0,0.37737986]
[1625351227469,3.28543113,34515.0,34514.0,0.33937986]
[1625351230476,4.62391475,34515.0,34514.0,0.33937986]
[1625351232029,5.29260731,34515.0,34514.0,0.33937986]
[1625351233383,5.23360731,34515.0,34514.0,0.28037986]
[1625351233482,5.29260731,34515.0,34514.0,0.28037986]
[1625351235387,6.79773557,34515.0,34514.0,0.28037986]
[1625351236486,6.79773557,34515.0,34514.0,0.26777986]
[1625351236585,6.79773557,34515.0,34514.0,0.25557986]
[1625351236686,6.79773557,34515.0,34514.0,0.24747986]
[1625351238639,5.29260731,34515.0,34514.0,0.24747986]
[1625351239188,6.79947403,34515.0,34514.0,0.24747986]
[1625351240141,6.79947403,34515.0,34514.0,0.21707986]
[1625351242042,6.79947403,34515.0,34514.0,0.14517986]
[1625351247055,8.4706756,34515.0,34514.0,0.14517986]
[1625351247606,8.50503433,34515.0,34514.0,0.14517986]
[1625351248209,8.50503433,34515.0,34510.0,0.55442136]
[1625351248308,8.50503433,34515.0,34501.0,0.24057544]
[1625351248410,0.175,34514.0,34491.0,0.55491338]
[1625351248614,6.17911999,34511.0,34493.0,1.36656297]
[1625351248712,0.057,34510.0,34499.0,0.62670459]
[1625351248810,0.557,34510.0,34498.0,0.20557432]
[1625351248912,0.75837828,34510.0,34497.0,0.59327891]
[1625351249061,0.059,34498.0,34497.0,0.48247891]
[1625351249164,0.27752,34498.0,34497.0,0.42157891]
[1625351249313,0.059,34497.0,34495.0,0.01528164]
[1625351249417,0.89352,34498.0,34493.0,0.80394461]
[1625351249563,0.118,34497.0,34493.0,0.32154461]
[1625351249664,0.057,34496.0,34493.0,0.08154461]
[1625351249815,0.059,34493.0,34491.0,0.14055799]
[1625351249913,0.059,34493.0,34473.0,2.39144404]
[1625351249914,0.059,34493.0,34483.0,0.17093758]
[1625351250021,0.059,34491.0,34483.0,0.17093758]
[1625351250115,0.34448,34491.0,34483.0,0.12793758]
[1625351250215,0.557,34490.0,34483.0,0.02293758]
[1625351250318,0.96230176,34484.0,34480.0,0.98232549]
[1625351250416,0.557,34483.0,34480.0,0.27462549]
[1625351250566,0.557,34483.0,34480.0,0.00092549]
[1625351250665,0.675,34483.0,34480.0,0.00092549]
[1625351250918,0.01463048,34482.0,34480.0,0.00092549]
[1625351251018,0.01463048,34482.0,34478.0,0.59328856]
[1625351251121,0.07363048,34482.0,34478.0,0.30298856]
[1625351251218,0.00262152,34481.0,34478.0,0.30298856]
[1625351251367,0.11862152,34481.0,34476.0,1.29148921]
[1625351251567,0.5,34480.0,34473.0,1.51273824]
[1625351251667,0.5,34480.0,34473.0,1.50333824]
[1625351251668,0.057,34479.0,34473.0,1.50333824]
[1625351251768,0.057,34479.0,34463.0,0.9071]
[1625351251877,0.00262224,34477.0,34472.0,0.49712223]
[1625351252117,0.06162224,34477.0,34472.0,0.55612223]
[1625351252218,1.3175941,34473.0,34472.0,0.15316082]
[1625351252320,2.09894266,34473.0,34472.0,0.15316082]
[1625351252419,2.09894266,34473.0,34463.0,0.9071]
[1625351252519,2.65794266,34473.0,34470.0,0.48672434]
[1625351252769,2.94932402,34471.0,34466.0,0.2965842]
[1625351252918,0.4219,34470.0,34466.0,0.2965842]
[1625351253019,0.5,34469.0,34466.0,8.42e-05]
[1625351253171,0.116,34468.0,34466.0,8.42e-05]
[1625351253322,0.5,34467.0,34450.0,0.059]
[1625351253419,0.057,34466.0,34450.0,0.059]
[1625351253680,0.116,34466.0,34444.0,0.48873666]
[1625351253769,0.175,34466.0,34444.0,0.41673666]
[1625351253871,1.30686518,34453.0,34444.0,0.47573666]
[1625351253973,1.53227518,34453.0,34444.0,0.47573666]
[1625351254325,0.24057544,34450.0,34444.0,0.47573666]
[1625351254421,0.24057544,34450.0,34444.0,0.22773666]
[1625351254524,0.29957544,34450.0,34444.0,0.22773666]
[1625351254625,0.29957544,34450.0,34444.0,0.13953666]
[1625351254722,0.29957544,34450.0,34444.0,0.06273666]
[1625351254822,0.29957544,34450.0,34444.0,0.00493666]
[1625351254931,0.29957544,34450.0,34444.0,3.666e-05]
[1625351255023,0.35857544,34450.0,34444.0,3.666e-05]
[1625351255374,1.29909177,34447.0,34444.0,3.666e-05]
[1625351255473,1.35809177,34447.0,34444.0,3.666e-05]
[1625351255673,0.00016334,34438.0,34428.0,0.55535278]
[1625351255775,1.56764105,34446.0,34428.0,0.55535278]
[1625351255875,1.62664105,34446.0,34428.0,0.55535278]
[1625351255973,2.18564105,34446.0,34428.0,0.55535278]
[1625351256226,0.175,34445.0,34428.0,0.55535278]
[1625351256324,0.72172632,34438.0,34428.0,0.79592822]
[1625351256423,1.00813632,34438.0,34428.0,0.79592822]
[1625351256523,1.06713632,34438.0,34428.0,0.79592822]
[1625351256623,1.00813632,34438.0,34428.0,0.79592822]
[1625351256722,1.06713632,34438.0,34428.0,0.79592822]
[1625351257277,1.12413632,34438.0,34428.0,0.79592822]
[1625351257377,1.12413632,34438.0,34428.0,0.55535278]
[1625351257479,1.06713632,34438.0,34428.0,0.55535278]
[1625351257827,1.06713632,34438.0,34430.0,0.61528887]
[1625351258328,0.48115088,34431.0,34430.0,0.61528887]
[1625351258432,0.67577088,34431.0,34430.0,0.61528887]
[1625351258830,0.67577088,34431.0,34430.0,0.67428887]
[1625351259382,0.67577088,34431.0,34430.0,0.61528887]
[1625351259481,0.73477088,34431.0,34430.0,0.61528887]
[1625351260032,0.67577088,34431.0,34430.0,0.61528887]
[1625351260282,0.97534632,34431.0,34430.0,0.61528887]
[1625351260383,0.91634632,34431.0,34430.0,0.61528887]
[1625351260584,0.97534632,34431.0,34430.0,0.61528887]
[1625351260686,0.91634632,34431.0,34430.0,0.61528887]
[1625351260785,0.97534632,34431.0,34430.0,0.61528887]
[1625351260884,0.91634632,34431.0,34430.0,0.61528887]
[1625351261086,0.97534632,34431.0,34430.0,0.61528887]
[1625351261237,0.91634632,34431.0,34430.0,0.61528887]
[1625351261887,0.97534632,34431.0,34430.0,0.61528887]
[1625351262038,0.91634632,34431.0,34430.0,0.61528887]
[1625351262237,0.97534632,34431.0,34430.0,0.61528887]
[1625351262337,0.91634632,34431.0,34430.0,0.85586431]
[1625351262438,0.057,34448.0,34430.0,0.85586431]
[1625351262537,0.059,34448.0,34430.0,1.16282431]
[1625351262888,0.118,34448.0,34430.0,1.10382431]
[1625351263039,0.31691,34447.0,34430.0,1.10382431]
[1625351263138,0.37591,34447.0,34430.0,1.10382431]
[1625351263243,0.37591,34447.0,34430.0,1.16282431]
[1625351263339,0.25991,34447.0,34430.0,1.16282431]
[1625351263439,0.20091,34447.0,34430.0,1.16282431]
[1625351263541,0.25991,34447.0,34430.0,1.16282431]
[1625351263693,0.25991,34447.0,34430.0,1.10382431]
[1625351264190,0.25991,34447.0,34430.0,1.16282431]
[1625351264191,0.057,34446.0,34430.0,1.16282431]
[1625351264390,0.24057544,34442.0,34441.0,0.24057544]
[1625351264490,0.29957544,34442.0,34441.0,0.29957544]
[1625351265340,0.29957544,34442.0,34441.0,0.24057544]
[1625351265439,0.29957544,34442.0,34441.0,0.29957544]
[1625351265790,0.24057544,34445.0,34441.0,0.29957544]
[1625351265991,0.24057544,34445.0,34441.0,0.57577544]
[1625351266093,0.24057544,34445.0,34441.0,0.63477544]
[1625351266392,0.24057544,34445.0,34444.0,0.24057544]
[1625351266492,0.24057544,34445.0,34444.0,0.29957544]
[1625351266641,0.24057544,34445.0,34444.0,0.35857544]
[1625351266741,0.24057544,34449.0,34444.0,0.35857544]
[1625351266843,0.24057544,34449.0,34444.0,0.29957544]
[1625351266844,0.059,34445.0,34444.0,0.29957544]
[1625351266946,0.059,34445.0,34444.0,0.24057544]
[1625351267092,0.3678,34445.0,34444.0,0.24057544]
[1625351267394,0.4248,34445.0,34444.0,0.24057544]
[1625351267746,0.3678,34445.0,34444.0,0.24057544]
[1625351267947,0.3678,34445.0,34444.0,0.21607544]
[1625351268046,0.3678,34445.0,34437.0,0.24057544]
[1625351268144,0.3678,34445.0,34437.0,0.29957544]
[1625351268295,0.34425185,34438.0,34437.0,0.29957544]
[1625351268446,0.88440273,34438.0,34437.0,0.29957544]
[1625351270149,0.88440273,34438.0,34437.0,0.059]
[1625351271601,0.88440273,34438.0,34430.0,0.79686431]
[1625351271702,0.88440273,34438.0,34430.0,0.61528887]
[1625351271802,0.057,34437.0,34430.0,0.61528887]
[1625351271903,0.116,34437.0,34430.0,0.61528887]
[1625351272354,0.48115088,34431.0,34430.0,0.61528887]
[1625351272452,0.70957088,34431.0,34430.0,0.61528887]
[1625351272553,0.76857088,34431.0,34430.0,0.61528887]
[1625351273254,0.76857088,34431.0,34430.0,0.55628887]
[1625351273353,0.82557088,34431.0,34430.0,0.55628887]
[1625351273504,0.76857088,34431.0,34430.0,0.55628887]
[1625351274305,0.82557088,34431.0,34430.0,0.55628887]
[1625351274408,0.82557088,34431.0,34425.0,0.24057544]
[1625351274507,0.76857088,34431.0,34425.0,0.24057544]
[1625351276414,0.24057544,34429.0,34428.0,0.21100791]
[1625351276615,0.29957544,34429.0,34428.0,0.21100791]
[1625351278323,0.35657544,34429.0,34428.0,0.21100791]
[1625351279225,0.35657544,34429.0,34418.0,0.55610173]
[1625351279331,0.35657544,34429.0,34422.0,0.7614]
[1625351279425,0.5,34428.0,34422.0,0.7024]
[1625351279526,0.057,34427.0,34422.0,0.7024]
[1625351279680,0.175,34427.0,34422.0,0.7024]
[1625351280176,0.01464042,34426.0,34422.0,0.7024]
[1625351280280,0.07364042,34426.0,34418.0,0.55610173]
[1625351280378,0.13264042,34426.0,34418.0,0.07530173]
[1625351280528,0.99859632,34419.0,34415.0,0.44214543]
[1625351280629,0.07530173,34417.0,34415.0,0.44214543]
[1625351280731,0.057,34418.0,34415.0,0.36964543]
[1625351280881,0.118,34417.0,34415.0,0.28274543]
[1625351280989,0.057,34416.0,34415.0,0.16634543]
[1625351281180,0.59146676,34416.0,34360.0,1.16625243]
[1625351281288,0.59146676,34416.0,34400.0,0.01016458]
[1625351281395,0.059,34415.0,34376.0,0.923]
[1625351281538,0.5,34414.0,34376.0,0.059]
[1625351281639,0.057,34413.0,34355.0,1.49946742]
[1625351281739,1.1786,34406.0,34345.0,1.00010623]
[1625351281899,1.36742,34403.0,34375.0,1.281]
[1625351281980,0.557,34402.0,34375.0,1.1451]
[1625351282081,0.557,34402.0,34375.0,1.14156]
[1625351282184,0.93651023,34391.0,34375.0,1.04906]
[1625351282280,0.557,34390.0,34375.0,0.98676]
[1625351282382,0.557,34390.0,34320.0,1.00070022]
[1625351282483,0.96230176,34376.0,34344.0,0.24057544]
[1625351282583,0.6445,34375.0,34344.0,0.059]
[1625351282784,0.6445,34375.0,34337.0,0.24057544]
[1625351282785,0.7625,34375.0,34337.0,0.24057544]
[1625351282884,0.73799524,34375.0,34323.0,0.03387544]
[1625351283036,0.79699524,34375.0,34323.0,0.059]
[1625351283136,0.08367219,34374.0,34323.0,0.059]
[1625351283437,0.93066974,34370.0,34323.0,0.059]
[1625351283535,0.587,34369.0,34323.0,0.059]
[1625351283636,0.80617,34369.0,34323.0,0.059]
[1625351283735,0.86517,34369.0,34323.0,0.059]
[1625351283886,0.86517,34369.0,34299.0,1.0013816]
[1625351284035,0.92868033,34362.0,34291.0,1.00179292]
[1625351284144,0.86418,34361.0,34291.0,1.00179292]
[1625351284238,0.86418,34361.0,34300.0,0.0044129]
[1625351284334,0.92318,34361.0,34300.0,0.0044129]
[1625351284434,0.96230176,34301.0,34300.0,0.0044129]
[1625351284538,1.27664176,34301.0,34300.0,0.0634129]
[1625351284634,1.27664176,34301.0,34300.0,0.0044129]
[1625351284935,1.27664176,34301.0,34300.0,0.00882679]
[1625351285186,1.33564176,34301.0,34300.0,0.00441389]
[1625351285386,1.33564176,34301.0,34244.0,2.9843389]
[1625351285637,1.33564176,34301.0,34286.0,0.059]
[1625351285638,1.35031922,34301.0,34286.0,0.059]
[1625351285742,1.35031922,34301.0,34253.0,0.99546365]
[1625351285838,1.35031922,34301.0,34253.0,1.05446365]
[1625351285937,0.014679,34300.0,34253.0,1.05446365]
[1625351286087,0.073679,34300.0,34253.0,1.05446365]
[1625351286184,0.073679,34300.0,34254.0,0.00441861]
[1625351286289,0.073679,34300.0,34254.0,0.01305902]
[1625351286486,0.24057544,34290.0,34289.0,0.24057544]
[1625351286584,0.24057544,34290.0,34285.0,0.24057544]
[1625351286684,0.24057544,34290.0,34285.0,0.29957544]
[1625351286987,0.48115088,34301.0,34285.0,0.29957544]
[1625351287088,0.059,34301.0,34285.0,0.29957544]
[1625351287339,0.01474266,34300.0,34285.0,0.29957544]
[1625351287639,0.07374266,34300.0,34285.0,0.29957544]
[1625351287741,0.01474266,34300.0,34285.0,0.29957544]
[1625351287892,0.0872,34343.0,34285.0,0.29957544]
[1625351287989,0.118,34336.0,34285.0,0.29957544]
[1625351288440,0.24057544,34309.0,34308.0,0.24057544]
[1625351288640,0.24057544,34309.0,34308.0,0.29957544]
[1625351288991,0.24057544,34309.0,34308.0,0.059]
[1625351289241,0.24057544,34309.0,34261.0,0.96060115]
[1625351289343,0.24057544,34309.0,34308.0,0.059]
[1625351289690,0.24057544,34316.0,34308.0,0.059]
[1625351289790,0.24057544,34316.0,34308.0,0.33726]
[1625351290490,0.24057544,34316.0,34310.0,0.24057544]
[1625351290592,0.24057544,34316.0,34308.0,0.27826]
[1625351290692,0.24057544,34316.0,34308.0,0.33726]
[1625351290843,0.54196544,34316.0,34274.0,0.9287]
[1625351290942,0.54196544,34316.0,34274.0,0.9877]
[1625351291593,0.60096544,34316.0,34274.0,0.9877]
[1625351292493,0.24057544,34296.0,34295.0,0.24057544]
[1625351292696,0.59592544,34296.0,34288.0,0.24057544]
[1625351292797,0.59592544,34296.0,34274.0,0.9287]
[1625351292896,0.59592544,34296.0,34274.0,1.0467]
[1625351293000,0.65492544,34296.0,34274.0,1.0467]
[1625351293448,0.65492544,34296.0,34274.0,0.9877]
[1625351293549,0.118,34295.0,34238.0,0.9271]
[1625351293698,0.177,34295.0,34238.0,1.9279]
[1625351293798,0.118,34295.0,34238.0,1.9869]
[1625351294000,0.118,34295.0,34239.0,0.53]
[1625351294100,0.118,34295.0,34239.0,1.148]
[1625351294301,0.118,34295.0,34239.0,0.148]
[1625351294500,0.24057544,34273.0,34270.0,0.24057544]
[1625351294600,0.24057544,34273.0,34270.0,0.35857544]
[1625351294701,0.24057544,34273.0,34270.0,0.29957544]
[1625351295254,0.29957544,34273.0,34270.0,0.059]
[1625351295354,0.24057544,34273.0,34239.0,0.0315]
[1625351295454,0.24057544,34273.0,34239.0,0.1495]
[1625351295554,0.24057544,34273.0,34239.0,0.118]
[1625351295654,0.24057544,34273.0,34239.0,0.059]
[1625351295755,0.29957544,34273.0,34239.0,0.059]
[1625351295904,0.29957544,34273.0,34239.0,0.118]
[1625351296007,0.35857544,34273.0,34239.0,0.118]
[1625351296205,0.35857544,34273.0,34239.0,0.059]
[1625351296405,0.35857544,34273.0,34239.0,0.118]
[1625351296506,0.24057544,34255.0,34252.0,0.24057544]
[1625351296607,0.24057544,34255.0,34252.0,0.29957544]
[1625351296805,0.24057544,34273.0,34252.0,0.29957544]
[1625351296916,0.29957544,34273.0,34252.0,0.35857544]
[1625351297408,0.24057544,34273.0,34252.0,0.35857544]
[1625351297558,0.9578,34303.0,34252.0,0.35857544]
[1625351297662,0.2042193,34312.0,34252.0,0.35857544]
[1625351297808,0.118,34295.0,34252.0,0.56419544]
[1625351297909,0.059,34295.0,34252.0,0.56419544]
[1625351298360,0.118,34295.0,34252.0,0.56419544]
[1625351298561,0.24057544,34289.0,34282.0,0.24057544]
[1625351298658,0.29957544,34289.0,34285.0,0.059]
[1625351299109,0.00263563,34286.0,34285.0,0.059]
[1625351299358,0.06163563,34286.0,34285.0,0.059]
[1625351300559,0.06163563,34286.0,34285.0,0.29957544]
[1625351300810,0.00263563,34286.0,34285.0,0.29957544]
[1625351300911,0.29957544,34296.0,34285.0,0.61279544]
[1625351301011,0.29957544,34296.0,34285.0,0.67179544]
[1625351301261,0.29957544,34296.0,34285.0,0.61279544]
[1625351301361,0.29957544,34296.0,34285.0,0.67179544]
[1625351301560,0.29957544,34296.0,34285.0,0.61279544]
[1625351301910,0.29957544,34296.0,34285.0,0.55379544]
[1625351302061,0.29957544,34296.0,34285.0,0.24057544]
[1625351302413,0.29957544,34296.0,34285.0,0.29957544]
[1625351302511,0.29957544,34296.0,34289.0,0.24057544]
[1625351302861,0.29957544,34296.0,34289.0,0.29957544]
[1625351303361,0.29957544,34296.0,34289.0,0.24057544]
[1625351303461,0.29957544,34296.0,34289.0,0.29957544]
[1625351303863,0.29957544,34296.0,34285.0,0.24057544]
[1625351303963,0.29957544,34296.0,34289.0,0.27924]
[1625351304063,0.35857544,34296.0,34289.0,0.27924]
[1625351304262,0.24057544,34296.0,34289.0,0.27924]
[1625351304414,0.32907544,34296.0,34289.0,0.33824]
[1625351304565,0.44707544,34296.0,34291.0,0.24057544]
[1625351304813,0.48115088,34299.0,34291.0,0.24057544]
[1625351304915,0.48115088,34299.0,34291.0,0.29957544]
[1625351305063,0.48115088,34299.0,34291.0,0.35857544]
[1625351305264,0.24057544,34304.0,34291.0,0.35857544]
[1625351306016,0.20403985,34342.0,34291.0,0.35857544]
[1625351306216,1.0636,34325.0,34291.0,0.35857544]
[1625351306362,0.118,34325.0,34291.0,0.35857544]
[1625351306465,0.118,34325.0,34291.0,0.29957544]
[1625351306565,0.24057544,34309.0,34308.0,0.24057544]
[1625351306665,0.29957544,34309.0,34308.0,0.24057544]
[1625351307365,0.24057544,34309.0,34308.0,0.059]
[1625351307465,0.24057544,34309.0,34297.0,0.24057544]
[1625351307466,0.29957544,34309.0,34297.0,0.24057544]
[1625351307566,0.24057544,34309.0,34297.0,0.24057544]
[1625351307714,0.24057544,34309.0,34297.0,0.35857544]
[1625351308317,0.24057544,34309.0,34297.0,0.29957544]
[1625351308518,0.35857544,34309.0,34277.0,0.005]
[1625351308619,0.24057544,34285.0,34283.0,0.24057544]
[1625351308717,0.45507544,34285.0,34283.0,0.29957544]
[1625351309067,0.45507544,34285.0,34283.0,0.35857544]
[1625351309217,0.45507544,34285.0,34283.0,0.29957544]
[1625351309322,0.45507544,34285.0,34283.0,0.24057544]
[1625351309673,0.51407544,34285.0,34283.0,0.24057544]
[1625351309770,0.45507544,34285.0,34283.0,0.24057544]
[1625351309918,0.51407544,34285.0,34283.0,0.24057544]
[1625351310371,0.51407544,34285.0,34283.0,0.29957544]
[1625351310472,0.24057544,34285.0,34283.0,0.29957544]
[1625351310623,0.24057544,34293.0,34284.0,0.54741544]
[1625351310922,0.24057544,34293.0,34284.0,0.60641544]
[1625351311172,0.35857544,34293.0,34284.0,0.54741544]
[1625351311374,0.01490532,34292.0,34284.0,0.54741544]
[1625351311526,0.07390532,34292.0,34284.0,0.54741544]